fUSD/lending_fUSD_20260107
["ID","MTS","AMOUNT","RATE_DAILY","PERIOD"]
[400624747,1767748272136,-424.648875,0.00043472,120]
[400624748,1767748272146,-309.814225,0.00043472,120]
[400624749,1767748272157,-309.814225,0.00043472,120]
[400624750,1767748272167,-160.872111,0.00043472,120]
[400624751,1767748272182,-160.872111,0.00043472,120]
[400624752,1767748272192,-309.814225,0.00043472,120]
[400624753,1767748272202,-424.648875,0.00043472,120]
[400624754,1767748272212,-309.814225,0.00043472,120]
[400624755,1767748272222,-424.648875,0.00043472,120]
[400624756,1767748272232,-160.872111,0.00043472,120]
[400624757,1767748272241,-309.814228,0.00043472,120]
[400624758,1767748272251,-160.872111,0.00043472,120]
[400624759,1767748272261,-424.648875,0.00043472,120]
[400624760,1767748272271,-424.648867,0.00043472,120]
[400624761,1767748272280,-160.872111,0.00043472,120]
[400624762,1767748272290,-160.872111,0.00043472,120]
[400624763,1767748272299,-160.872111,0.00043472,120]
[400624764,1767748272309,-160.872114,0.00043472,120]
[400624765,1767748272318,-152.670524,0.00043472,120]
[400624766,1767748272327,-152.670524,0.00043472,120]
[400624767,1767748272337,-152.670524,0.00043472,120]
[400624768,1767748272347,-152.670524,0.00043472,120]
[400624769,1767748272356,-152.670524,0.00043472,120]
[400624770,1767748272367,-152.670524,0.00043472,120]
[400624771,1767748272379,-152.670524,0.00043472,120]
[400624772,1767748272389,-152.67052,0.00043472,120]
[400624773,1767748272399,-398.259008,0.00043472,120]
[400624774,1767748272410,-398.259008,0.00043472,120]
[400624775,1767748272421,-398.259008,0.00043472,120]
[400624776,1767748272430,-398.259008,0.00043472,120]
[400624777,1767748272440,-398.259008,0.00043472,120]
[400624778,1767748272453,-398.259008,0.00043472,120]
[400624779,1767748272463,-398.259008,0.00043472,120]
[400624780,1767748272472,-398.259018,0.00043472,120]
[400624781,1767748272482,-151.0,0.00043472,120]
[400624782,1767748272493,-252.95693,0.00043472,120]
[400624783,1767748272502,-252.95693,0.00043472,120]
[400624784,1767748272512,-252.95693,0.00043472,120]
[400624785,1767748272521,-165.986845,0.00043472,120]
[400624786,1767748272531,-252.95693,0.00043472,120]
[400624787,1767748272540,-165.986845,0.00043472,120]
[400624788,1767748272549,-252.95693,0.00043472,120]
[400624789,1767748272559,-165.986845,0.00043472,120]
[400624790,1767748272568,-252.95693,0.00043472,120]
[400624791,1767748272577,-165.986845,0.00043472,120]
[400624792,1767748272587,-252.95693,0.00043472,120]
[400624793,1767748272596,-165.986845,0.00043472,120]
[400624794,1767748272605,-252.956934,0.00043472,120]
[400624795,1767748272615,-165.986845,0.00043472,120]
[400624796,1767748272624,-165.986845,0.00043472,120]
[400624797,1767748272634,-165.986853,0.00043472,120]
[400624798,1767748272644,-740.418108,0.00043472,120]
[400624799,1767748272654,-740.418108,0.00043472,120]
[400624800,1767748272663,-740.418108,0.00043472,120]
[400624801,1767748272674,-740.418108,0.00043472,120]
[400624802,1767748272684,-740.418108,0.00043472,120]
[400624803,1767748272694,-740.418108,0.00043472,120]
[400624804,1767748272705,-740.418108,0.00043472,120]
[400624805,1767748272719,-740.418108,0.00043472,120]
[400624806,1767748272736,-546.55735729,0.00043472,120]
[400624807,1767748272752,-249.73386371,0.00043472,120]
[400624808,1767748272761,-578.35721647,0.00043472,120]
[400624809,1767748272773,-217.93400453,0.00043472,120]
[400624810,1767748272782,-182.97767403,0.00043472,120]
[400624811,1767748272794,-340.69465398,0.00043472,120]
[400624812,1767748283913,152.44,0.00011263,2]
[400624813,1767748284213,152.44,0.00012286,2]
[400624814,1767748284417,152.44,0.0001331,2]
[400624815,1767748285168,152.44,0.00014334,2]
[400624816,1767748285244,152.44,0.00015358,2]
[400624817,1767748338099,264.7,0.00032877,120]
[400624819,1767748641346,-152.44,0.00016382,2]
[400624820,1767748641369,-27.07236539,0.00016388,2]
[400624821,1767748643943,-225.63160369,0.00016388,2]
[400624822,1767748645483,-273.72720908,0.00016388,2]
[400624824,1767748720787,166.66,0.00015428,2]
[400624825,1767748720988,166.66,0.00015753,2]
[400624826,1767748721196,166.66,0.00016078,2]
[400624828,1767749205713,9598.94,0.00015739,2]
[400624840,1767749326188,649.0,0.00032876,120]
[400624841,1767749354151,-205.28113902,0.00016388,2]
[400624842,1767749354174,-250.0,0.00016388,2]
[400624843,1767749354195,-300.0,0.00016388,2]
[400624844,1767749354216,-195.0,0.00016388,2]
[400624845,1767749354237,-311.54275263,0.00016388,2]
[400624846,1767749354259,-300.0,0.00016389,2]
[400624847,1767749354280,-273.72720908,0.00016389,2]
[400624848,1767749354301,-1200.0,0.0001639,2]
[400624849,1767749354322,-300.0,0.0001639,2]
[400624850,1767749354346,-300.0,0.00016392,2]
[400624851,1767749354368,-166.66,0.00016402,2]
[400624852,1767749354390,-150.99,0.00016418,2]
[400624853,1767749354410,-1402.85248327,0.00016418,2]
[400624854,1767749373129,-5309.29093672,0.00016418,2]
[400624855,1767749422811,1000.0,0.00015818,2]
[400624878,1767749431542,-302.04407022,0.00016404,2]
[400624880,1767749431554,-268.42305266,0.00016404,2]
[400624882,1767749431564,-2500.0,0.00016407,2]
[400624884,1767749431573,-195.0,0.00016411,2]
[400624886,1767749431583,-254.06537614,0.00016411,2]
[400624888,1767749431593,-2500.0,0.00016414,2]
[400624890,1767749431602,-2009.52295458,0.00016414,2]
[400624892,1767749431612,-3287.84658001,0.00016418,2]
[400624894,1767749431623,-465.63648362,0.00016419,2]
[400624896,1767749431634,-534.35351638,0.00016419,2]
[400624898,1767749431644,-95.95648362,0.00016419,2]
[400624905,1767749431721,-55.03351638,0.00016419,2]
[400624906,1767749431732,-205.28113902,0.0001642,2]
[400624907,1767749431742,-195.0,0.0001642,2]
[400624908,1767749431756,-226.47,0.00016438,2]
[400624909,1767749431772,-229.90785482,0.00016519,2]
[400624910,1767749431784,-685.06112175,0.00016519,2]
[400624911,1767749431794,-359.46594151,0.000166,2]
[400624912,1767749431806,-300.0,0.00016618,2]
[400624913,1767749431815,-927.47979321,0.00016618,2]
[400624914,1767749431828,-272.52020679,0.00016618,2]
[400624915,1767749431839,-300.0,0.00016618,2]
[400624916,1767749431849,-550.0,0.00016618,2]
[400624917,1767749431859,-4214.60569651,0.00016619,2]
[400624930,1767749437477,-164.72,0.00016609,2]
[400624931,1767749437487,-13121.07926393,0.00016619,2]
[400624933,1767749437498,-6072.34228217,0.00016619,2]
[400624934,1767749437509,-377.61624895,0.00016619,2]
[400624935,1767749437524,-5823.79367082,0.00016619,2]
[400624937,1767749437535,-3811.97193151,0.00016619,2]
[400624939,1767749437545,-5754.30756225,0.00016619,2]
[400624940,1767749437556,-920.21977013,0.00016619,2]
[400624941,1767749437568,-959904.06357373,0.00016619,2]
[400624942,1767749437578,-165.15,0.00016712,2]
[400624943,1767749437587,-2309.60238071,0.00016719,2]
[400624944,1767749437596,-298.50665221,0.00016719,2]
[400624945,1767749437605,-166.66,0.00016727,2]
[400624946,1767749437614,-392.25326142,0.00016777,2]
[400624947,1767749437624,-1306.504,0.00016817,2]
[400624948,1767749437632,-500.0,0.00016818,2]
[400624949,1767749437642,-398.9250442,0.00016818,2]
[400624950,1767749437650,-432.84538617,0.00016818,2]
[400624951,1767749437660,-500.0,0.00016818,2]
[400624952,1767749437668,-500.0,0.00016818,2]
[400624953,1767749437678,-500.0,0.00016818,2]
[400624954,1767749437687,-392.28910591,0.00016818,2]
[400624955,1767749437696,-500.0,0.00016818,2]
[400624956,1767749437705,-500.0,0.00016818,2]
[400624957,1767749437714,-500.0,0.00016818,2]
[400624958,1767749437724,-500.0,0.00016818,2]
[400624960,1767749437734,-500.0,0.00016818,2]
[400624961,1767749437743,-500.0,0.00016818,2]
[400624962,1767749437752,-500.0,0.00016818,2]
[400624963,1767749437761,-500.0,0.00016818,2]
[400624965,1767749437770,-500.0,0.00016818,2]
[400624966,1767749437779,-500.0,0.00016818,2]
[400624968,1767749437791,-500.0,0.00016818,2]
[400624970,1767749437800,-500.0,0.00016818,2]
[400624972,1767749437810,-500.0,0.00016818,2]
[400624974,1767749437819,-500.0,0.00016818,2]
[400624976,1767749437828,-500.0,0.00016818,2]
[400624978,1767749437837,-500.0,0.00016818,2]
[400624980,1767749437847,-500.0,0.00016818,2]
[400624982,1767749437857,-500.0,0.00016818,2]
[400624984,1767749437867,-500.0,0.00016818,2]
[400624986,1767749437877,-500.0,0.00016818,2]
[400624988,1767749437886,-500.0,0.00016818,2]
[400624990,1767749437895,-500.0,0.00016818,2]
[400624992,1767749437905,-500.0,0.00016818,2]
[400624994,1767749437914,-500.0,0.00016818,2]
[400624996,1767749437923,-500.0,0.00016818,2]
[400624998,1767749437932,-642.686032,0.00016818,2]
[400625000,1767749437942,-500.0,0.00016818,2]
[400625002,1767749437950,-500.0,0.00016818,2]
[400625004,1767749437960,-500.0,0.00016818,2]
[400625006,1767749437970,-500.0,0.00016818,2]
[400625008,1767749437979,-500.0,0.00016818,2]
[400625010,1767749437988,-500.0,0.00016818,2]
[400625012,1767749437998,-500.0,0.00016818,2]
[400625014,1767749438008,-500.0,0.00016818,2]
[400625016,1767749438018,-500.0,0.00016818,2]
[400625018,1767749438028,-500.0,0.00016818,2]
[400625020,1767749438038,-500.0,0.00016818,2]
[400625022,1767749438048,-500.0,0.00016818,2]
[400625024,1767749438059,-500.0,0.00016818,2]
[400625026,1767749438068,-500.0,0.00016818,2]
[400625028,1767749438079,-500.0,0.00016818,2]
[400625030,1767749438089,-500.0,0.00016818,2]
[400625032,1767749438099,-500.0,0.00016818,2]
[400625034,1767749438108,-500.0,0.00016818,2]
[400625036,1767749438118,-500.0,0.00016818,2]
[400625038,1767749438127,-500.0,0.00016818,2]
[400625040,1767749438137,-500.0,0.00016818,2]
[400625042,1767749438147,-500.0,0.00016818,2]
[400625044,1767749438157,-500.0,0.00016818,2]
[400625046,1767749438167,-500.0,0.00016818,2]
[400625048,1767749438176,-500.0,0.00016818,2]
[400625050,1767749438186,-500.0,0.00016818,2]
[400625052,1767749438196,-415.67471627,0.00016818,2]
[400625054,1767749438206,-500.0,0.00016818,2]
[400625056,1767749438216,-500.0,0.00016818,2]
[400625058,1767749438227,-500.0,0.00016818,2]
[400625060,1767749438236,-230.25518863,0.00016818,2]
[400625063,1767749438246,-500.0,0.00016818,2]
[400625065,1767749438257,-230.25518863,0.00016818,2]
[400625067,1767749438267,-500.0,0.00016818,2]
[400625069,1767749438277,-230.25518863,0.00016818,2]
[400625071,1767749438288,-310.07884292,0.00016818,5]
[400625073,1767749438298,-1518.56,0.00016818,2]
[400625075,1767749438307,-634.45995881,0.00016818,2]
[400625077,1767749438317,-500.0,0.00016818,2]
[400625079,1767749438327,-500.0,0.00016818,2]
[400625081,1767749438337,-500.0,0.00016818,2]
[400625082,1767749438347,-500.0,0.00016818,2]
[400625085,1767749438357,-2309.60238066,0.00016851,2]
[400625086,1767749438366,-298.50665221,0.00016888,2]
[400625089,1767749438379,-151.0,0.00016913,2]
[400625091,1767749438388,-62036.95484899,0.00016916,2]
[400625093,1767749438398,-2309.60238066,0.00016982,2]
[400625095,1767749438407,-300.0,0.00016986,2]
[400625096,1767749438417,-466.43,0.00016986,2]
[400625099,1767749438427,-178.99,0.00016986,2]
[400625101,1767749438436,-164.31,0.00016986,2]
[400625142,1767749438825,-243.43,0.00016986,2]
[400625145,1767749438834,-150.0,0.00016986,2]
[400625147,1767749438844,-152.56,0.00016986,2]
[400625149,1767749438853,-178.99,0.00016986,2]
[400625151,1767749438863,-661.18,0.00016986,2]
[400625153,1767749438873,-482.51,0.00016986,2]
[400625155,1767749438883,-466.43,0.00016986,2]
[400625157,1767749438892,-661.18,0.00016986,2]
[400625159,1767749438901,-178.99,0.00016986,2]
[400625161,1767749438911,-466.43,0.00016986,2]
[400625163,1767749438921,-482.51,0.00016986,2]
[400625165,1767749438930,-661.18,0.00016986,2]
[400625167,1767749438940,-482.51,0.00016986,2]
[400625169,1767749438950,-178.99,0.00016986,2]
[400625171,1767749438959,-466.43,0.00016986,2]
[400625173,1767749438969,-661.18,0.00016986,2]
[400625175,1767749438978,-178.99,0.00016986,2]
[400625177,1767749438987,-482.51,0.00016986,2]
[400625179,1767749438996,-466.43,0.00016986,2]
[400625180,1767749439007,-466.43,0.00016986,2]
[400625182,1767749439017,-178.99,0.00016986,2]
[400625184,1767749439027,-661.18,0.00016986,2]
[400625186,1767749439036,-482.51,0.00016986,2]
[400625188,1767749439047,-178.99,0.00016986,2]
[400625191,1767749439057,-661.18,0.00016986,2]
[400625193,1767749439067,-482.51,0.00016986,2]
[400625195,1767749439077,-178.99,0.00016986,2]
[400625196,1767749439087,-661.18,0.00016986,2]
[400625198,1767749439096,-482.51,0.00016986,2]
[400625201,1767749439106,-178.99,0.00016986,2]
[400625202,1767749439116,-661.18,0.00016986,2]
[400625204,1767749439125,-482.51,0.00016986,2]
[400625206,1767749439135,-178.99,0.00016986,2]
[400625208,1767749439145,-482.51,0.00016986,2]
[400625210,1767749439155,-661.18,0.00016986,2]
[400625212,1767749439164,-178.99,0.00016986,2]
[400625214,1767749439175,-482.51,0.00016986,2]
[400625216,1767749439185,-178.99,0.00016986,2]
[400625219,1767749439196,-482.51,0.00016986,2]
[400625220,1767749439205,-178.99,0.00016986,2]
[400625222,1767749439214,-482.51,0.00016986,2]
[400625224,1767749439224,-482.51,0.00016986,2]
[400625226,1767749439233,-178.99,0.00016986,2]
[400625228,1767749439242,-178.99,0.00016986,2]
[400625230,1767749439251,-178.99,0.00016986,2]
[400625232,1767749439265,-178.99,0.00016986,2]
[400625235,1767749439274,-661.18,0.00016986,2]
[400625236,1767749439284,-178.99,0.00016986,2]
[400625238,1767749439293,-294.37,0.00016986,2]
[400625240,1767749439303,-661.18,0.00016986,2]
[400625242,1767749439312,-661.18,0.00016986,2]
[400625244,1767749439321,-353.87,0.00016986,2]
[400625246,1767749439331,-166.25,0.00016986,2]
[400625248,1767749439340,-151.0,0.00016989,2]
[400625251,1767749439357,-151.0,0.00016994,2]
[400625253,1767749439368,-151.0,0.00016996,2]
[400625255,1767749439377,-166.66,0.00017052,2]
[400625256,1767749439387,-298.50665221,0.00017057,2]
[400625258,1767749439396,-500.0,0.00017092,2]
[400625260,1767749439404,-1518.56,0.00017092,2]
[400625262,1767749439414,-2309.60238066,0.00017114,2]
[400625265,1767749439423,-900.0,0.00017137,2]
[400625267,1767749439433,-298.50665221,0.00017226,2]
[400625269,1767749439441,-2309.60238066,0.00017245,2]
[400625271,1767749439451,-500.0,0.00017366,2]
[400625273,1767749439460,-1518.56,0.00017366,2]
[400625275,1767749439469,-2309.60238066,0.00017377,2]
[400625277,1767749439478,-1000.0,0.00017389,2]
[400625279,1767749439488,-298.50665221,0.00017396,2]
[400625280,1767749439497,-152.44,0.00017406,2]
[400625282,1767749439506,-555.93,0.00017479,2]
[400625284,1767749439515,-466.43,0.00017479,2]
[400625286,1767749439525,-171.25,0.00017479,2]
[400625288,1767749439534,-555.93,0.00017479,2]
[400625290,1767749439543,-171.25,0.00017479,2]
[400625293,1767749439553,-466.43,0.00017479,2]
[400625295,1767749439562,-555.93,0.00017479,2]
[400625297,1767749439572,-1011.15,0.00017479,2]
[400625299,1767749439581,-171.25,0.00017479,2]
[400625301,1767749439590,-466.43,0.00017479,2]
[400625303,1767749439599,-466.43,0.00017479,2]
[400625305,1767749439608,-466.43,0.00017479,2]
[400625307,1767749439616,-500.0,0.00017489,2]
[400625309,1767749439627,-543.11959034,0.00017489,2]
[400625311,1767749439636,-500.0,0.00017489,2]
[400625313,1767749439645,-2309.60238066,0.00017508,2]
[400625315,1767749439655,-1477.25768835,0.00017561,2]
[400625317,1767749439664,-298.50665221,0.00017565,2]
[400625319,1767749439673,-232.36445689,0.00017579,2]
[400625321,1767749439682,-500.0,0.00017589,2]
[400625323,1767749439691,-500.0,0.00017589,2]
[400625325,1767749439700,-500.0,0.00017589,2]
[400625327,1767749439709,-500.0,0.00017589,2]
[400625329,1767749439718,-500.0,0.00017589,2]
[400625331,1767749439727,-500.0,0.00017589,2]
[400625333,1767749439736,-500.0,0.00017589,2]
[400625335,1767749439746,-500.0,0.00017589,2]
[400625337,1767749439755,-500.0,0.00017589,2]
[400625339,1767749439768,-555.93,0.00017589,2]
[400625341,1767749439780,-171.25,0.00017589,2]
[400625343,1767749439790,-289.93,0.00017589,2]
[400625346,1767749439800,-555.93,0.00017589,2]
[400625348,1767749439811,-555.93,0.00017589,2]
[400625350,1767749439821,-171.25,0.00017589,2]
[400625351,1767749439830,-555.93,0.00017589,2]
[400625353,1767749439841,-171.25,0.00017589,2]
[400625355,1767749439851,-555.93,0.00017589,2]
[400625357,1767749439860,-555.93,0.00017589,2]
[400625359,1767749439870,-555.93,0.00017589,2]
[400625361,1767749439879,-171.25,0.00017589,2]
[400625363,1767749439889,-555.93,0.00017589,2]
[400625365,1767749439898,-555.93,0.00017589,2]
[400625366,1767749439908,-171.25,0.00017589,2]
[400625367,1767749439917,-555.93,0.00017589,2]
[400625368,1767749439927,-555.93,0.00017589,2]
[400625369,1767749439937,-555.93,0.00017589,2]
[400625370,1767749439947,-171.25,0.00017589,2]
[400625371,1767749439957,-555.93,0.00017589,2]
[400625372,1767749439966,-555.93,0.00017589,2]
[400625373,1767749439975,-466.43,0.00017589,2]
[400625374,1767749439986,-171.25,0.00017589,2]
[400625375,1767749439996,-555.93,0.00017589,2]
[400625376,1767749440005,-171.25,0.00017589,2]
[400625377,1767749440014,-466.43,0.00017589,2]
[400625379,1767749440024,-555.93,0.00017589,2]
[400625381,1767749440033,-555.93,0.00017589,2]
[400625383,1767749440042,-171.25,0.00017589,2]
[400625385,1767749440051,-466.43,0.00017589,2]
[400625387,1767749440060,-555.93,0.00017589,2]
[400625389,1767749440069,-555.93,0.00017589,2]
[400625391,1767749440078,-171.25,0.00017589,2]
[400625392,1767749440089,-555.93,0.00017589,2]
[400625394,1767749440098,-466.43,0.00017589,2]
[400625396,1767749440108,-555.93,0.00017589,2]
[400625399,1767749440117,-171.25,0.00017589,2]
[400625402,1767749440127,-466.43,0.00017589,2]
[400625404,1767749440137,-555.93,0.00017589,2]
[400625407,1767749440147,-500.0,0.0001764,2]
[400625409,1767749440157,-2309.60238066,0.0001764,2]
[400625410,1767749440166,-1518.56,0.0001764,2]
[400625413,1767749440176,-255.0,0.00017731,2]
[400625415,1767749440186,-298.50665221,0.00017734,2]
[400625417,1767749440196,-2309.60238066,0.00017771,2]
[400625419,1767749440205,-1000.0,0.00017795,2]
[400625421,1767749440214,-364.61696962,0.000179,2]
[400625423,1767749440224,-435.28267586,0.000179,2]
[400625425,1767749440233,-177.16389542,0.000179,3]
[400625427,1767749440243,-511.8622612,0.000179,2]
[400625429,1767749440252,-364.6169696,0.00017901,2]
[400625431,1767749440261,-364.6169696,0.00017902,2]
[400625433,1767749440270,-2309.60238066,0.00017903,2]
[400625435,1767749440279,-298.50665221,0.00017903,2]
[400625437,1767749440287,-589.55968275,0.00017914,2]
[400625439,1767749440296,-1518.56,0.00017914,2]
[400625441,1767749440306,-369.80479113,0.00017961,2]
[400625443,1767749440315,-500.0,0.00017973,2]
[400625444,1767749440324,-500.0,0.00017973,2]
[400625446,1767749440333,-505.83293522,0.00017973,2]
[400625448,1767749440343,-500.0,0.00017973,2]
[400625450,1767749440352,-500.0,0.00017973,2]
[400625453,1767749440362,-411.41313033,0.00017973,2]
[400625454,1767749440371,-500.0,0.00017973,2]
[400625457,1767749440382,-500.0,0.00017973,2]
[400625459,1767749440391,-500.0,0.00017973,2]
[400625461,1767749440402,-516.59149792,0.00017973,2]
[400625463,1767749440412,-500.0,0.00017973,2]
[400625465,1767749440421,-500.0,0.00017973,2]
[400625467,1767749440430,-500.0,0.00017973,2]
[400625469,1767749440439,-505.89055766,0.00017973,2]
[400625471,1767749440448,-500.0,0.00017973,2]
[400625473,1767749440457,-500.0,0.00017973,2]
[400625475,1767749440466,-200.0,0.00017987,2]
[400625477,1767749440476,-232.36445689,0.0001799,2]
[400625479,1767749440485,-232.36445689,0.0001799,2]
[400625481,1767749440494,-500.0,0.00017991,2]
[400625483,1767749440503,-151.0,0.00017997,2]
[400625485,1767749440512,-300.0,0.00017999,2]
[400625487,1767749440522,-500.0,0.00017999,2]
[400625489,1767749440531,-500.0,0.00017999,2]
[400625491,1767749440540,-424.00712375,0.00017999,2]
[400625493,1767749440550,-209.12934922,0.00017999,2]
[400625495,1767749440559,-441.05998686,0.00017999,2]
[400625497,1767749440568,-230.74754803,0.00017999,2]
[400625499,1767749440578,-500.0,0.00017999,2]
[400625500,1767749440587,-637.56746892,0.00017999,2]
[400625502,1767749440596,-500.0,0.00017999,2]
[400625504,1767749440606,-500.0,0.00017999,2]
[400625506,1767749440616,-500.0,0.00017999,2]
[400625508,1767749440626,-500.0,0.00017999,2]
[400625511,1767749440636,-500.0,0.00017999,2]
[400625513,1767749440645,-500.0,0.00017999,2]
[400625515,1767749440654,-688436.74246325,0.00018,2]
[400625517,1767749440669,-4846489.49695087,0.00018,2]
[400625523,1767749440717,-11227.72327528,0.00018,2]
[400625525,1767749440728,-896.94,0.00018,2]
[400625528,1767749440744,-1992.11526075,0.00018,2]
[400625530,1767749440756,-551.09530478,0.00018,2]
[400625791,1767749443266,-151.0,0.00017005,2]
[400625793,1767749443275,-103.73559968,0.000179,2]
[400625795,1767749443286,-1707.813,0.000179,2]
[400625828,1767749444133,-151.0,0.00017005,2]
[400625829,1767749444143,-651.21663744,0.000179,2]
[400625830,1767749444152,-121.80836016,0.000179,2]
[400625840,1767749445576,-1727.57371264,0.000179,2]
[400625841,1767749445586,-385.78863664,0.000179,2]
[400625842,1767749445600,-825.39377998,0.000179,2]
[400625843,1767749445623,-638.19965618,0.000179,2]
[400625844,1767749445632,-1849.3820728,0.00017901,2]
[400625845,1767749445642,-1849.3820728,0.00017901,2]
[400625846,1767749445652,-1849.3820728,0.00017902,2]
[400625847,1767749445661,-394.91117703,0.00017902,2]
[400625848,1767749445672,-1454.47089577,0.00017902,2]
[400625849,1767749445682,-5739.36882439,0.00018,2]
[400625850,1767749445694,-3649.82327439,0.00018,2]
[400625851,1767749445705,-5865.23560611,0.00018,2]
[400625852,1767749445715,-5866.65708772,0.00018,2]
[400625853,1767749445726,-5069.05991764,0.00018,2]
[400625854,1767749445737,-28976.10513994,0.00018,2]
[400625855,1767749445747,-31698.52604113,0.00018,2]
[400625856,1767749445758,-12356.48532603,0.00018,2]
[400625858,1767749495864,-161.34487945,0.00016287,2]
[400625859,1767749495897,-133.68897867,0.00016287,2]
[400625860,1767749498678,292.80365275,0.000328,120]
[400625861,1767749501887,-175.27021636,0.00016287,2]
[400625862,1767749502965,-231.55609456,0.00016287,2]
[400625863,1767749504997,-258.94882433,0.00016287,2]
[400625864,1767749506964,-151.76494787,0.00016287,2]
[400625865,1767749509153,-385.07253898,0.00016287,2]
[400625867,1767749570793,-470.12465888,0.00016205,2]
[400625868,1767749574089,-208.2668177,0.00016205,2]
[400625869,1767749580172,826.85,0.00032877,120]
[400625870,1767749612746,-65.75091842,0.00016205,2]
[400625871,1767749627970,179.76,0.00013547,2]
[400625872,1767749644216,189.0766034,0.00032876,120]
[400625873,1767749734856,-48.25839923,0.00016287,2]
[400625874,1767749734877,-195.0,0.00016448,2]
[400625875,1767749734899,-361.90598525,0.00016519,2]
[400625876,1767749734921,-1200.0,0.00016608,2]
[400625877,1767749734942,-254.0,0.00016608,2]
[400625878,1767749734963,-23597.51272201,0.00016609,2]
[400625879,1767749734984,-11414.76091138,0.00016609,2]
[400625880,1767749735007,-500.0,0.00016618,2]
[400625881,1767749735030,-500.0,0.00016618,2]
[400625882,1767749735051,-500.0,0.00016618,2]
[400625883,1767749735073,-500.0,0.00016618,2]
[400625884,1767749735097,-500.0,0.00016618,2]
[400625885,1767749735119,-500.0,0.00016618,2]
[400625886,1767749735141,-500.0,0.00016618,2]
[400625887,1767749735167,-556.12829308,0.00016618,2]
[400625888,1767749735189,-500.0,0.00016618,2]
[400625889,1767749735210,-500.0,0.00016618,2]
[400625890,1767749735231,-500.0,0.00016618,2]
[400625891,1767749735253,-504.39386887,0.00016618,2]
[400625892,1767749735278,-500.0,0.00016618,2]
[400625893,1767749735302,-500.0,0.00016618,2]
[400625894,1767749735323,-500.0,0.00016618,2]
[400625895,1767749735345,-230.25518863,0.00016618,2]
[400625896,1767749735370,-500.0,0.00016618,2]
[400625897,1767749735394,-500.0,0.00016618,2]
[400625898,1767749735418,-500.0,0.00016618,2]
[400625899,1767749735437,-401.24765838,0.00016618,2]
[400625900,1767749735457,-434.94059788,0.00016618,2]
[400625901,1767749735479,-500.0,0.00016618,2]
[400625902,1767749735500,-500.0,0.00016618,2]
[400625903,1767749735521,-500.0,0.00016618,2]
[400625904,1767749735541,-500.0,0.00016618,2]
[400625905,1767749735568,-500.0,0.00016618,2]
[400625906,1767749735601,-500.0,0.00016618,2]
[400625907,1767749735629,-500.0,0.00016618,2]
[400625908,1767749735660,-500.0,0.00016618,2]
[400625909,1767749735691,-500.0,0.00016618,2]
[400625910,1767749735717,-500.0,0.00016618,2]
[400625911,1767749735748,-500.0,0.00016618,2]
[400625912,1767749735777,-500.0,0.00016618,2]
[400625913,1767749735808,-500.0,0.00016618,2]
[400625914,1767749735835,-500.0,0.00016618,2]
[400625915,1767749735871,-500.0,0.00016618,2]
[400625916,1767749735903,-500.0,0.00016618,2]
[400625917,1767749735935,-500.0,0.00016618,2]
[400625918,1767749735964,-500.0,0.00016618,2]
[400625919,1767749735990,-500.0,0.00016618,2]
[400625920,1767749736020,-500.0,0.00016618,2]